fUST/lending_fUST_20251119
["ID","MTS","AMOUNT","RATE_DAILY","PERIOD"]
[394393712,1763525439182,-8941.90613257,0.00015097,2]
[394393713,1763525439192,-151.0,0.000151,2]
[394393714,1763525439201,-500.0,0.0001515,2]
[394393715,1763525439210,-151.0,0.0001515,2]
[394393716,1763525439220,-500.0,0.0001515,2]
[394393717,1763525439229,-151.0,0.0001515,2]
[394393718,1763525439238,-151.0,0.0001515,2]
[394393719,1763525439248,-201.18033103,0.0001515,2]
[394393720,1763525439257,-151.0,0.0001515,2]
[394393721,1763525439267,-565.0,0.0001515,2]
[394393722,1763525439276,-153.60225874,0.0001515,2]
[394393723,1763525439286,-157.8498372,0.0001515,2]
[394393724,1763525439295,-151.0,0.0001515,2]
[394393725,1763525439305,-487.0,0.0001515,2]
[394393726,1763525439314,-156.98824744,0.0001515,2]
[394393727,1763525439323,-1616.0,0.0001515,2]
[394393728,1763525439464,-9272.75665947,0.00015152,2]
[394393729,1763525439476,-500.0,0.00015177,2]
[394393730,1763525439484,-151.0,0.00015177,2]
[394393731,1763525439494,-500.0,0.00015177,2]
[394393732,1763525439503,-159.24956226,0.00015177,2]
[394393733,1763525439514,-151.0,0.00015177,2]
[394393734,1763525439523,-277.21465388,0.00015177,2]
[394393735,1763525439532,-565.0,0.00015177,2]
[394393736,1763525439541,-205.52081515,0.00015177,2]
[394393737,1763525439550,-487.0,0.00015177,2]
[394393738,1763525439559,-1616.0,0.00015177,2]
[394393739,1763525439568,-600.0,0.00015191,2]
[394393740,1763525439578,-151.0,0.000152,2]
[394393741,1763525439588,-151.0,0.000152,2]
[394393742,1763525439597,-165.04320545,0.00015205,2]
[394393743,1763525439606,-279.23716234,0.00015205,2]
[394393744,1763525439615,-500.0,0.00015205,2]
[394393745,1763525439624,-151.0,0.00015205,2]
[394393746,1763525439633,-565.0,0.00015205,2]
[394393747,1763525439642,-487.0,0.00015205,2]
[394393748,1763525439652,-1616.0,0.00015205,2]
[394393749,1763525439661,-9615.84865587,0.00015207,2]
[394393750,1763525439671,-4991.0,0.00015209,2]
[394393751,1763525439680,-500.0,0.00015232,2]
[394393752,1763525439690,-254.3822629,0.00015232,2]
[394393753,1763525439700,-565.0,0.00015232,2]
[394393754,1763525439710,-487.0,0.00015232,2]
[394393755,1763525439722,-1616.0,0.00015232,2]
[394393756,1763525439733,-237.0,0.00015232,2]
[394393757,1763525439742,-500.0,0.0001526,2]
[394393758,1763525439753,-565.0,0.0001526,2]
[394393759,1763525439763,-487.0,0.0001526,2]
[394393760,1763525439773,-1616.0,0.0001526,2]
[394393761,1763525439782,-4991.0,0.0001526,2]
[394393762,1763525439791,-217.15233878,0.0001526,2]
[394393763,1763525439800,-9971.63505614,0.00015262,2]
[394393764,1763525439810,-500.0,0.00015269,2]
[394393765,1763525439819,-237.0,0.00015284,2]
[394393766,1763525439828,-237.0,0.00015287,2]
[394393767,1763525439837,-500.0,0.00015287,2]
[394393768,1763525439847,-565.0,0.00015287,2]
[394393769,1763525439856,-487.0,0.00015287,2]
[394393770,1763525439865,-1616.0,0.00015287,2]
[394393771,1763525439875,-500.0,0.00015314,2]
[394393772,1763525439884,-565.0,0.00015314,2]
[394393773,1763525439893,-487.0,0.00015314,2]
[394393774,1763525439903,-1616.0,0.00015314,2]
[394393775,1763525439912,-970.2134175,0.00015321,2]
[394393776,1763525439921,-1000.0,0.00015321,2]
[394393777,1763525439930,-1016.89679084,0.00015321,2]
[394393778,1763525439939,-1000.0,0.00015321,2]
[394393779,1763525439952,-506.29595838,0.00015321,2]
[394393780,1763525439961,-1000.0,0.00015321,2]
[394393781,1763525439971,-676.90449595,0.00015321,2]
[394393782,1763525439979,-1000.0,0.00015321,2]
[394393783,1763525439989,-1000.0,0.00015321,2]
[394393784,1763525439998,-1000.0,0.00015321,2]
[394393785,1763525440008,-1000.0,0.00015321,2]
[394393786,1763525440017,-1000.0,0.00015321,2]
[394393788,1763525440028,-1000.0,0.00015321,2]
[394393790,1763525440037,-1000.0,0.00015321,2]
[394393792,1763525440046,-1000.0,0.00015321,2]
[394393793,1763525440055,-212.21361508,0.00015321,2]
[394393794,1763525440064,-1000.0,0.00015321,2]
[394393795,1763525440073,-1000.0,0.00015321,2]
[394393796,1763525440082,-1000.0,0.00015321,2]
[394393797,1763525440091,-1000.0,0.00015321,2]
[394393798,1763525440101,-1000.0,0.00015321,2]
[394393799,1763525440110,-1000.0,0.00015321,2]
[394393800,1763525440119,-1000.0,0.00015321,2]
[394393801,1763525440128,-237.0,0.00015324,2]
[394393802,1763525440137,-173.03643772,0.00015342,2]
[394393803,1763525440147,-565.0,0.00015342,2]
[394393804,1763525440156,-487.0,0.00015342,2]
[394393805,1763525440165,-1616.0,0.00015342,2]
[394393806,1763525440174,-237.0,0.00015365,2]
[394393807,1763525440184,-565.0,0.00015369,2]
[394393808,1763525440193,-487.0,0.00015369,2]
[394393809,1763525440203,-1616.0,0.00015369,2]
[394393810,1763525440212,-237.0,0.00015373,2]
[394393811,1763525440221,-565.0,0.00015397,2]
[394393812,1763525440231,-487.0,0.00015397,2]
[394393813,1763525440241,-1616.0,0.00015397,2]
[394393814,1763525440250,-237.0,0.00015412,2]
[394393815,1763525440260,-553.00202843,0.00015419,2]
[394393816,1763525440269,-237.0,0.00015424,2]
[394393817,1763525440278,-565.0,0.00015424,2]
[394393818,1763525440287,-487.0,0.00015424,2]
[394393819,1763525440296,-1616.0,0.00015424,2]
[394393820,1763525440305,-237.0,0.00015428,2]
[394393821,1763525440315,-565.0,0.00015451,2]
[394393822,1763525440323,-487.0,0.00015451,2]
[394393823,1763525440334,-1616.0,0.00015451,2]
[394393824,1763525440343,-237.0,0.00015477,2]
[394393825,1763525440352,-565.0,0.00015479,2]
[394393826,1763525440361,-487.0,0.00015479,2]
[394393827,1763525440370,-1616.0,0.00015479,2]
[394393828,1763525440380,-4991.0,0.000155,2]
[394393829,1763525440389,-202.100352,0.00015501,2]
[394393830,1763525440398,-202.100352,0.00015501,2]
[394393831,1763525440407,-202.100352,0.00015501,2]
[394393832,1763525440416,-202.100352,0.00015501,2]
[394393833,1763525440425,-565.0,0.00015506,2]
[394393834,1763525440434,-487.0,0.00015506,2]
[394393835,1763525440444,-1616.0,0.00015506,2]
[394393836,1763525440453,-237.0,0.0001551,2]
[394393837,1763525440463,-237.0,0.00015519,2]
[394393838,1763525440472,-565.0,0.00015534,2]
[394393839,1763525440482,-487.0,0.00015534,2]
[394393840,1763525440491,-1616.0,0.00015534,2]
[394393841,1763525440501,-271.83543133,0.00015536,2]
[394393842,1763525440511,-500.0,0.00015543,2]
[394393843,1763525440520,-565.0,0.00015561,2]
[394393844,1763525440530,-487.0,0.00015561,2]
[394393845,1763525440540,-1616.0,0.00015561,2]
[394393846,1763525440549,-237.0,0.00015577,2]
[394393847,1763525440558,-4991.0,0.00015579,2]
[394393848,1763525440567,-4991.0,0.0001558,2]
[394393849,1763525440576,-565.0,0.00015588,2]
[394393850,1763525440585,-487.0,0.00015588,2]
[394393851,1763525440595,-1616.0,0.00015588,2]
[394393852,1763525440604,-4991.0,0.0001559,2]
[394393854,1763525440613,-565.0,0.00015616,2]
[394393856,1763525440623,-487.0,0.00015616,2]
[394393858,1763525440632,-1616.0,0.00015616,2]
[394393859,1763525440642,-565.0,0.00015643,2]
[394393860,1763525440651,-487.0,0.00015643,2]
[394393861,1763525440660,-565.0,0.00015671,2]
[394393862,1763525440669,-487.0,0.00015671,2]
[394393863,1763525440678,-237.0,0.00015677,2]
[394393864,1763525440688,-565.0,0.00015698,2]
[394393865,1763525440697,-487.0,0.00015698,2]
[394393866,1763525440706,-237.0,0.00015703,2]
[394393867,1763525440715,-4991.0,0.00015713,2]
[394393868,1763525440725,-565.0,0.00015725,2]
[394393869,1763525440734,-487.0,0.00015725,2]
[394393870,1763525440743,-237.0,0.0001573,2]
[394393871,1763525440752,-565.0,0.00015753,2]
[394393872,1763525440761,-487.0,0.00015753,2]
[394393873,1763525440770,-1209.0742764,0.00015777,2]
[394393874,1763525440779,-582.95400124,0.0001578,2]
[394393875,1763525440788,-498.38587116,0.0001578,2]
[394393876,1763525440797,-237.0,0.00015785,2]
[394393877,1763525440806,-151.0,0.000158,2]
[394393878,1763525440815,-225.18697532,0.00015808,2]
[394393879,1763525440825,-500.0,0.00015817,2]
[394393880,1763525440834,-237.0,0.00015818,2]
[394393881,1763525440843,-480.00032508,0.00015868,2]
[394393882,1763525440853,-1002.36654671,0.00015868,2]
[394393883,1763525440862,-1500.0,0.00015868,2]
[394393884,1763525440871,-532.65714763,0.00015868,2]
[394393885,1763525440880,-1602.49645875,0.00015868,2]
[394393886,1763525440890,-1500.0,0.00015868,2]
[394393887,1763525440899,-1500.0,0.00015868,2]
[394393888,1763525440908,-1500.0,0.00015868,2]
[394393889,1763525440917,-1500.0,0.00015868,2]
[394393890,1763525440926,-1500.0,0.00015868,2]
[394393891,1763525440935,-506.33799268,0.00015868,2]
[394393892,1763525440946,-1500.0,0.00015868,2]
[394393893,1763525440956,-1017.16437544,0.00015868,2]
[394393894,1763525440965,-1500.0,0.00015868,2]
[394393895,1763525440974,-1500.0,0.00015868,2]
[394393896,1763525440983,-1500.0,0.00015868,2]
[394393897,1763525440994,-423.78626152,0.00015868,2]
[394393898,1763525441003,-1500.0,0.00015868,2]
[394393899,1763525441014,-151.000082,0.00015904,2]
[394393900,1763525441028,-152.662201,0.00015904,2]
[394393901,1763525441038,-152.662201,0.00015904,2]
[394393902,1763525441048,-152.662201,0.00015904,2]
[394393903,1763525441057,-152.662201,0.00015904,2]
[394393904,1763525441066,-100000.0,0.00015904,2]
[394393905,1763525441076,-214.56473727,0.00016,2]
[394393906,1763525441085,-151.0,0.00016,2]
[394393907,1763525441095,-500.0,0.00016091,2]
[394393908,1763525441104,-420.0,0.00016097,2]
[394393909,1763525441113,-1680.0,0.00016099,2]
[394393910,1763525441122,-151.0,0.000161,2]
[394393911,1763525441132,-1600.0,0.00016164,2]
[394393912,1763525441142,-1680.0,0.00016174,2]
[394393913,1763525441151,-279.45168221,0.00016275,2]
[394393914,1763525441161,-151.0,0.000163,2]
[394393915,1763525441170,-233.51889341,0.00016356,2]
[394393916,1763525441179,-500.0,0.00016365,2]
[394393917,1763525441188,-10000.0,0.00016373,2]
[394393918,1763525441198,-180.84682452,0.00016373,2]
[394393919,1763525441209,-202.100352,0.00016416,2]
[394393920,1763525441219,-202.100352,0.00016416,2]
[394393921,1763525441229,-202.100352,0.00016416,2]
[394393922,1763525441240,-202.100352,0.00016416,2]
[394393923,1763525441250,-2000.0,0.00016416,2]
[394393924,1763525441260,-527.31382683,0.00016416,2]
[394393925,1763525441270,-2000.0,0.00016416,2]
[394393926,1763525441279,-2000.0,0.00016416,2]
[394393927,1763525441288,-668.75498445,0.00016416,2]
[394393928,1763525441298,-2000.0,0.00016416,2]
[394393929,1763525441307,-501.77337171,0.00016416,2]
[394393930,1763525441317,-2000.0,0.00016416,2]
[394393931,1763525441326,-2000.0,0.00016416,2]
[394393932,1763525441335,-2000.0,0.00016416,2]
[394393933,1763525441344,-1154.38698722,0.00016416,2]
[394393934,1763525441353,-458.125719,0.00016438,2]
[394393935,1763525441362,-458.125719,0.00016438,2]
[394393936,1763525441372,-458.125719,0.00016438,2]
[394393937,1763525441382,-458.125719,0.00016438,2]
[394393938,1763525441391,-500.0,0.00016438,2]
[394393939,1763525441401,-500.0,0.00016438,2]
[394393940,1763525441410,-500.0,0.00016438,2]
[394393941,1763525441419,-500.0,0.00016438,2]
[394393942,1763525441429,-500.0,0.00016438,2]
[394393943,1763525441439,-500.0,0.00016438,2]
[394393944,1763525441448,-500.0,0.00016438,2]
[394393945,1763525441458,-500.0,0.00016438,2]
[394393946,1763525441467,-500.0,0.00016438,2]
[394393947,1763525441477,-500.0,0.00016438,2]
[394393948,1763525441486,-500.0,0.00016438,2]
[394393949,1763525441495,-471.83083258,0.00016438,2]
[394393950,1763525441504,-500.0,0.00016438,2]
[394393951,1763525441513,-500.0,0.00016438,2]
[394393952,1763525441522,-500.0,0.00016438,2]
[394393953,1763525441531,-500.0,0.00016438,2]
[394393954,1763525441540,-500.0,0.00016438,2]
[394393955,1763525441550,-500.0,0.00016438,2]
[394393956,1763525441559,-500.0,0.00016438,2]
[394393957,1763525441567,-500.0,0.00016438,2]
[394393958,1763525441576,-500.0,0.00016438,2]
[394393959,1763525441585,-500.0,0.00016438,2]
[394393960,1763525441595,-500.0,0.00016438,2]
[394393961,1763525441604,-500.0,0.00016438,2]
[394393962,1763525441613,-500.0,0.00016438,2]
[394393963,1763525441622,-500.0,0.00016438,2]
[394393964,1763525441632,-500.0,0.00016438,2]
[394393965,1763525441642,-500.0,0.00016438,2]
[394393966,1763525441651,-500.0,0.00016438,2]
[394393967,1763525441660,-500.0,0.00016438,2]
[394393968,1763525441670,-500.0,0.00016438,2]
[394393969,1763525441679,-500.0,0.00016438,2]
[394393970,1763525441688,-500.0,0.00016438,2]
[394393971,1763525441698,-500.0,0.00016438,2]
[394393972,1763525441708,-500.0,0.00016438,2]
[394393973,1763525441717,-500.0,0.00016438,2]
[394393974,1763525441726,-500.0,0.00016438,2]
[394393975,1763525441736,-500.0,0.00016438,2]
[394393976,1763525441746,-500.0,0.00016438,2]
[394393977,1763525441755,-500.0,0.00016438,2]
[394393978,1763525441765,-500.0,0.00016438,2]
[394393979,1763525441774,-500.0,0.00016438,2]
[394393980,1763525441784,-500.0,0.00016438,2]
[394393981,1763525441794,-500.0,0.00016438,2]
[394393982,1763525441804,-592.96546316,0.00016438,2]
[394393983,1763525441814,-500.0,0.00016438,2]
[394393984,1763525441824,-500.0,0.00016438,2]
[394393985,1763525441934,-500.0,0.00016438,2]
[394393986,1763525441946,-500.0,0.00016438,2]
[394393987,1763525441959,-500.0,0.00016438,2]
[394393988,1763525441968,-500.0,0.00016438,2]
[394393989,1763525441978,-500.0,0.00016438,2]
[394393990,1763525441988,-500.0,0.00016438,2]
[394393991,1763525441997,-500.0,0.00016438,2]
[394393992,1763525442007,-500.0,0.00016438,2]
[394393993,1763525442016,-500.0,0.00016438,2]
[394393994,1763525442026,-500.0,0.00016438,2]
[394393995,1763525442037,-500.0,0.00016438,2]
[394393996,1763525442047,-500.0,0.00016438,2]
[394393997,1763525442056,-500.0,0.00016438,2]
[394393998,1763525442065,-600.0,0.00016438,2]
[394393999,1763525442075,-500.0,0.00016438,2]
[394394000,1763525442084,-500.0,0.00016438,2]
[394394001,1763525442093,-500.0,0.00016438,2]
[394394002,1763525442102,-151.0,0.00016438,2]
[394394003,1763525442112,-151.0,0.00016438,2]
[394394004,1763525442121,-151.0,0.00016438,2]
[394394005,1763525442131,-151.0,0.00016438,2]
[394394006,1763525442140,-151.0,0.00016438,2]
[394394007,1763525442150,-151.0,0.00016438,2]
[394394008,1763525442159,-151.0,0.00016438,2]
[394394009,1763525442168,-202.145556,0.00016438,2]
[394394010,1763525442178,-151.0,0.00016438,2]
[394394011,1763525442187,-151.0,0.00016438,2]
[394394012,1763525442196,-151.0,0.00016438,2]
[394394013,1763525442205,-151.0,0.00016438,2]
[394394014,1763525442215,-151.0,0.00016438,2]
[394394015,1763525442225,-151.0,0.00016438,2]
[394394016,1763525442234,-151.0,0.00016438,2]
[394394017,1763525442244,-151.0,0.00016438,2]
[394394018,1763525442253,-151.0,0.00016438,2]
[394394019,1763525442262,-151.0,0.00016438,2]
[394394020,1763525442272,-152.832044,0.00016438,2]
[394394021,1763525442281,-505.86166721,0.00016473,2]
[394394022,1763525442290,-500.0,0.00016473,2]
[394394023,1763525442299,-179.97069143,0.00016473,2]
[394394024,1763525442309,-500.0,0.00016473,2]
[394394025,1763525442319,-174.97796697,0.00016473,2]
[394394026,1763525442329,-500.0,0.00016473,2]
[394394027,1763525442339,-500.0,0.00016473,2]
[394394028,1763525442348,-500.0,0.00016473,2]
[394394029,1763525442358,-500.0,0.00016473,2]
[394394030,1763525442367,-500.0,0.00016473,2]
[394394031,1763525442376,-270.95426615,0.00016473,2]
[394394032,1763525442464,-1562.94414615,0.00015643,2]
[394394033,1763525442938,-3e-08,0.00015643,2]
[394394043,1763525445444,-53.05585382,0.00015643,2]
[394394044,1763525445454,-2.79597881,0.00015671,2]
[394394045,1763525445547,10000.01,0.00014621,2]
[394394046,1763525445570,10000.01,0.00014621,2]
[394394052,1763525446782,-947.03437445,0.00014621,2]
[394394053,1763525454875,-9846.23132682,0.00014621,2]
[394394054,1763525454967,-10000.01,0.00014621,2]
[394394058,1763525508290,-581.19573489,0.00013562,2]
[394394059,1763525512072,-328.271702,0.00013562,2]
[394394060,1763525514990,-245.66826211,0.00013562,2]
[394394061,1763525515015,-138.34538032,0.00013699,2]
[394394062,1763525518490,-215.67774804,0.00013699,2]
[394394063,1763525520682,-347.11585858,0.00013699,2]
[394394064,1763525526244,-242.73639536,0.00013699,2]
[394394066,1763525565787,-168.06762783,0.00013426,2]
[394394069,1763525634056,4249.24,0.000125,2]
[394394070,1763525655895,-43.19268887,0.00013426,2]
[394394071,1763525655915,-211.2603167,0.00013562,2]
[394394072,1763525655938,-160.10204297,0.00013599,2]
[394394073,1763525655959,-55.01296332,0.00013699,2]
[394394074,1763525670796,-156.24735338,0.00013562,2]
[394394075,1763525670817,-12.87107315,0.00013699,2]
[394394076,1763525685763,-156.24735338,0.00013292,2]
[394394077,1763525685789,-156.24735338,0.00013426,2]
[394394078,1763525685815,-17.95222308,0.00013595,2]
[394394079,1763525688837,-254.81773809,0.00013459,2]
[394394080,1763525691415,-159.37719826,0.00013459,2]
[394394081,1763525695108,-160.66789128,0.00013459,2]
[394394082,1763525696672,-279.42315042,0.00013324,2]
[394394083,1763525700323,-221.85148178,0.00013324,2]
[394394084,1763525702535,-502.14334206,0.00013324,2]
[394394085,1763525704688,-163.7345188,0.00013191,2]
[394394086,1763525706700,-152.80392035,0.00013191,2]
[394394087,1763525706722,-203.50708527,0.00013324,2]
[394394088,1763525708301,-257.1029938,0.00013324,2]
[394394089,1763525709820,-263.2791796,0.00013324,2]
[394394090,1763525711353,-160.43527447,0.00013324,2]
[394394093,1763525714011,-243.54353299,0.00013324,2]
[394394100,1763525717806,-329.73489519,0.00013324,2]
[394394103,1763525719408,-231.24014149,0.00013324,2]
[394394104,1763525720894,-472.26177257,0.00013324,2]
[394394105,1763525720914,-308.10013394,0.00013458,2]
[394394106,1763525722528,-300.0,0.00013458,2]
[394394107,1763525724922,-320.45531104,0.00013458,2]
[394394108,1763525727065,-263.2791796,0.00013323,2]
[394394109,1763525727090,-271.44455502,0.00013458,2]
[394394110,1763525727113,-106.54862264,0.00013458,2]
[394394111,1763525729626,-193.45137736,0.00013458,2]
[394394112,1763525729648,-88.62030085,0.00013459,2]
[394394113,1763525733883,-220.11,0.00013459,2]
[394394114,1763525735863,-13.88005613,0.00013459,2]
[394394115,1763525735884,-143.90085235,0.00013459,2]
[394394116,1763525738793,-190.95036269,0.00013459,2]
[394394117,1763525742194,-266.2119629,0.00013459,2]
[394394118,1763525744852,-219.89751985,0.00013459,2]
[394394119,1763525748620,-183.716,0.00013459,2]
[394394120,1763525752939,-248.26,0.00013459,2]
[394394121,1763525757705,-675.70464607,0.00013459,2]
[394394122,1763525759903,-240.87556368,0.00013459,2]
[394394123,1763525891919,3449.5333232,0.00012687,2]
[394394124,1763525893830,203.85,0.00014,21]
[394394125,1763525898743,968.5890943,0.00039609,35]
[394394127,1763526400117,996.9660721,0.00039674,20]
[394394132,1763526470083,162.69150123,0.0001597,3]
[394394133,1763526472640,160.10204297,0.0001349,2]
[394394134,1763526551786,169.6479378,6.296e-05,2]
[394394137,1763526609094,9670.26001923,0.00013439,2]
[394394138,1763526609118,2332.02329957,0.00013439,2]
[394394185,1763526632717,-235.19294185,0.00013558,2]
[394394188,1763526632727,-209.40437684,0.00013584,2]
[394394190,1763526632736,-1200.0,0.00013589,2]
[394394192,1763526632745,-300.0,0.00013589,2]
[394394194,1763526632754,-500.0,0.00013589,2]
[394394196,1763526632763,-500.0,0.00013589,2]
[394394198,1763526632772,-500.0,0.00013589,2]
[394394200,1763526632781,-4.07107211,0.00013589,2]
[394394276,1763526638532,-495.92892789,0.00013589,2]
[394394277,1763526638542,-500.0,0.00013589,2]
[394394278,1763526638552,-500.0,0.00013589,2]
[394394279,1763526638562,-500.0,0.00013589,2]
[394394280,1763526638580,-500.0,0.00013589,2]
[394394281,1763526638589,-500.0,0.00013589,2]
[394394282,1763526638599,-500.0,0.00013589,2]
[394394283,1763526638607,-500.0,0.00013589,2]
[394394284,1763526638616,-500.0,0.00013589,2]
[394394285,1763526638625,-500.0,0.00013589,2]
[394394286,1763526638634,-500.0,0.00013589,2]
[394394287,1763526638644,-500.0,0.00013589,2]
[394394288,1763526638653,-500.0,0.00013589,2]
[394394289,1763526638663,-399.55573018,0.00013589,2]
[394394290,1763526638672,-500.0,0.00013589,2]
[394394291,1763526638683,-1200.0,0.0001359,2]
[394394292,1763526638693,-50000.0,0.0001359,2]
[394394293,1763526638703,-183.731,0.00013593,2]
[394394294,1763526638713,-532.275,0.00013593,2]
[394394295,1763526638723,-21746.74913262,0.00013595,2]
[394394296,1763526638732,-984.39,0.000136,2]
[394394297,1763526638742,-500.0,0.00013698,2]
[394394298,1763526638751,-500.0,0.00013698,2]
[394394299,1763526638761,-500.0,0.00013698,2]
[394394300,1763526638771,-500.0,0.00013698,2]
[394394301,1763526638781,-143.37628023,0.00013699,2]
[394394302,1763526638790,-189.45731233,0.00013726,2]
[394394303,1763526638800,-300.0,0.00013727,2]
[394394304,1763526638810,-300.0,0.00013727,2]
[394394305,1763526638820,-300.0,0.00013727,2]
[394394306,1763526638830,-300.0,0.00013727,2]
[394394307,1763526638839,-300.0,0.00013727,2]
[394394308,1763526638848,-300.0,0.00013727,2]
[394394309,1763526638858,-300.0,0.00013727,2]
[394394310,1763526638868,-300.0,0.00013727,2]
[394394311,1763526638877,-300.0,0.00013727,2]
[394394312,1763526638887,-300.0,0.00013727,2]
[394394313,1763526638896,-300.0,0.00013727,2]
[394394314,1763526638906,-300.0,0.00013727,2]
[394394315,1763526638916,-300.0,0.00013727,2]
[394394316,1763526638926,-300.0,0.00013727,2]
[394394317,1763526638936,-300.0,0.00013727,2]
[394394318,1763526638945,-2010.15761369,0.00014,2]
[394394319,1763526638955,-500.0,0.00014,2]
[394394320,1763526639066,-3007.04341895,0.00014,2]
[394394321,1763526639106,-217.15233878,0.00014132,2]
[394394322,1763526639116,-500.0,0.0001425,2]
[394394323,1763526639131,-500.0,0.0001425,2]
[394394324,1763526639141,-500.0,0.0001425,2]
[394394325,1763526639151,-500.0,0.0001425,2]
[394394326,1763526639160,-382.90001677,0.0001425,2]
[394394327,1763526639169,-500.0,0.0001425,2]
[394394328,1763526639178,-500.0,0.0001425,2]
[394394329,1763526639188,-255.24471556,0.0001425,2]
[394394330,1763526639197,-534.44770672,0.0001425,2]
[394394331,1763526639206,-158.55699744,0.0001425,2]
[394394332,1763526639216,-170.75559957,0.0001425,2]
[394394333,1763526639226,-231.35448524,0.0001425,2]
[394394334,1763526639235,-500.0,0.0001425,2]
[394394335,1763526639244,-500.0,0.0001425,2]
[394394336,1763526639254,-500.0,0.0001425,2]
[394394337,1763526639263,-500.0,0.0001425,2]
[394394338,1763526639272,-500.0,0.0001425,2]
[394394339,1763526639281,-500.0,0.0001425,2]
[394394340,1763526639292,-273.87326556,0.0001425,2]
[394394341,1763526639303,-500.0,0.00014274,2]
[394394342,1763526639312,-600.0,0.00014279,2]
[394394343,1763526639322,-502.00426262,0.00014485,2]
[394394344,1763526639331,-500.0,0.00014485,2]
[394394345,1763526639343,-1106.0,0.00014511,2]
[394394346,1763526639353,-41282.7265655,0.00014521,2]
[394394347,1763526639362,-500.0,0.00014548,2]
[394394348,1763526639372,-279.13228251,0.00014612,2]
[394394349,1763526639381,-622.16386914,0.00014673,2]
[394394350,1763526639390,-392.58132975,0.00014673,2]
[394394351,1763526639400,-500.0,0.00014673,2]
[394394352,1763526639409,-506.01992005,0.00014673,2]
[394394353,1763526639419,-500.0,0.00014673,2]
[394394354,1763526639427,-500.0,0.00014673,2]
[394394355,1763526639437,-500.0,0.00014673,2]
[394394356,1763526639446,-503.35889221,0.00014673,2]
[394394357,1763526639455,-500.0,0.00014673,2]
[394394358,1763526639464,-500.0,0.00014673,2]
[394394359,1763526639472,-359.05097354,0.00014673,2]
[394394360,1763526639482,-518.39835129,0.00014673,2]
[394394361,1763526639491,-503.48377302,0.00014673,2]
[394394362,1763526639500,-501.23325128,0.00014673,2]
[394394363,1763526639509,-500.0,0.00014673,2]
[394394364,1763526639518,-500.0,0.00014673,2]
[394394365,1763526639527,-500.0,0.00014673,2]
[394394366,1763526639536,-500.0,0.00014673,2]
[394394367,1763526639546,-300.78160585,0.00014673,2]
[394394368,1763526639555,-500.0,0.00014673,2]
[394394369,1763526639564,-508.5136232,0.00014673,2]
[394394370,1763526639573,-501.34505857,0.00014673,2]
[394394371,1763526639583,-500.0,0.00014673,2]
[394394372,1763526639592,-500.0,0.00014673,2]
[394394373,1763526639601,-500.0,0.00014673,2]
[394394374,1763526639610,-500.0,0.00014673,2]
[394394375,1763526639619,-509.51262256,0.00014673,2]
[394394376,1763526639628,-225.18697532,0.0001468,2]
[394394377,1763526639637,-151.0,0.000147,2]
[394394378,1763526639647,-151.0,0.000147,2]
[394394379,1763526639655,-151.0,0.000147,2]
[394394380,1763526639665,-2651.38960123,0.00014703,2]
[394394381,1763526639674,-6933.91976297,0.00014708,2]
[394394382,1763526639684,-7190.4747942,0.00014763,2]
[394394383,1763526639694,-970.2134175,0.00014798,2]